bitfinex-derivatives/quotes_ETHF0:USTF0_20260112
["timestamp","ask_amount","ask_price","bid_price","bid_amount"]
[1768240117249,0.30089967,3104.1,3102.3,0.14874753]
[1768240117744,0.13718764,3104.0,3102.3,0.00411265]
[1768240118051,0.13718764,3104.0,3102.3,0.14874753]
[1768240118550,0.16371203,3104.1,3102.3,0.14874753]
[1768240120550,0.16121,3104.0,3102.3,0.14874753]
[1768240120751,0.16118,3104.6,3103.3,2.00044286]
[1768240120946,3.227,3105.4,3103.3,2.14507774]
[1768240120947,0.13718764,3105.1,3103.3,2.14507774]
[1768240121141,0.29833764,3105.1,3103.3,2.14507774]
[1768240121547,0.16115,3105.1,3103.4,0.14463488]
[1768240121756,0.16405405,3105.1,3103.4,0.14463488]
[1768240122557,0.00290405,3105.1,3103.4,0.14463488]
[1768240122758,0.00290405,3105.1,3103.8,2.00044286]
[1768240123049,0.00290405,3105.1,3103.9,0.14463488]
[1768240123356,0.16405405,3105.1,3103.4,0.14463488]
[1768240124349,0.00290405,3105.1,3103.4,0.14463488]
[1768240124569,0.00290405,3105.1,3103.9,0.14463488]
[1768240125749,0.16112,3105.7,3103.9,0.14463488]
[1768240125957,0.16109,3106.3,3104.4,0.14463488]
[1768240126162,0.16109,3106.2,3104.4,0.14463488]
[1768240126553,0.16113,3105.5,3103.3,0.14463488]
[1768240126748,0.13718764,3105.7,3103.3,0.14463488]
[1768240126959,5.22544286,3105.8,3103.3,0.14463488]
[1768240126960,0.13718764,3105.4,3103.3,0.14463488]
[1768240127546,0.16115,3105.1,3103.5,0.14463488]
[1768240127951,0.13718764,3105.4,3103.9,2.00044286]
[1768240128154,0.16500897,3105.5,3104.0,0.14463488]
[1768240128345,0.16115,3105.2,3103.5,0.14463488]
[1768240128858,0.16115,3105.1,3103.5,0.14463488]
[1768240129051,0.00387897,3105.5,3103.0,0.14463488]
[1768240129052,0.16117,3104.7,3103.0,0.14463488]
[1768240129553,0.16117,3104.7,3103.1,0.14463488]
[1768240131261,0.13718764,3104.6,3102.6,0.14463488]
[1768240131464,0.13718764,3104.6,3102.8,0.14463488]
[1768240132568,0.16117,3104.7,3102.8,0.14463488]
[1768240133255,0.16117,3104.7,3103.2,2.00044286]
[1768240133459,0.16117,3104.7,3103.3,0.14463488]
[1768240134160,0.16117,3104.7,3102.9,2.14507774]
[1768240134361,0.16117,3104.7,3102.9,0.14463488]
[1768240136565,0.16118,3104.6,3102.7,2.00044286]
[1768240136871,0.13718764,3104.5,3102.7,0.14463488]
[1768240137063,0.13718764,3104.5,3102.4,2.30213935]
[1768240137064,0.13718764,3104.5,3102.9,0.14463488]
[1768240137768,0.16118,3104.6,3102.9,0.14463488]
[1768240138361,0.00387897,3105.5,3102.9,0.14463488]
[1768240138362,0.29832764,3105.2,3102.9,0.14463488]
[1768240138770,0.29832764,3105.2,3103.0,0.14463488]
[1768240138972,0.29832764,3105.2,3103.4,0.14463488]
[1768240140167,0.16114,3105.2,3103.8,2.00044286]
[1768240140365,0.00387897,3105.5,3104.3,2.00044286]
[1768240141361,1.271,3105.9,3104.4,0.14463488]
[1768240141667,0.16109,3106.3,3104.4,0.14463488]
[1768240142268,0.16109,3106.2,3104.4,0.14463488]
[1768240142466,3.22804223,3105.8,3104.1,0.1612]
[1768240142666,3.22804223,3105.8,3104.1,0.30583488]
[1768240142870,3.22804223,3105.8,3104.2,0.14463488]
[1768240143369,0.00304223,3105.8,3104.5,0.14463488]
[1768240143564,0.00304223,3105.8,3104.5,0.1478178]
[1768240144669,0.00304223,3105.8,3104.5,0.00318292]
[1768240145065,0.1443893,3105.6,3104.5,0.00318292]
[1768240145261,0.16115,3105.2,3103.5,2.44070046]
[1768240145467,0.16115,3105.1,3103.5,0.13856111]
[1768240145666,0.16115,3105.1,3103.2,2.30213935]
[1768240145667,0.00304223,3105.8,3103.7,0.13856111]
[1768240145966,0.16112,3105.7,3104.1,2.13900397]
[1768240146273,0.16112,3105.7,3104.1,2.1418014]
[1768240146671,0.16112,3105.7,3104.2,0.13856111]
[1768240147371,0.00304223,3105.8,3104.2,0.13856111]
[1768240151775,0.00304223,3105.8,3104.1,2.16444029]
[1768240151776,3.224,3106.3,3105.0,2.00044286]
[1768240151975,3.224,3106.3,3104.4,0.16118]
[1768240151976,3.3683893,3106.3,3104.4,0.16118]
[1768240152682,0.16109,3106.2,3104.4,0.13489008]
[1768240152978,3.37074705,3106.3,3104.4,0.13489008]
[1768240152979,0.1611,3106.1,3104.4,0.13489008]
[1768240154177,0.13669114,3106.2,3104.4,0.13489008]
[1768240154475,0.16112,3105.6,3104.1,0.00279743]
[1768240154874,0.13669114,3105.7,3104.1,0.00279743]
[1768240154875,0.16113,3105.5,3104.1,0.00279743]
[1768240155281,0.16113,3105.5,3104.1,0.13768751]
[1768240155978,0.13669114,3105.4,3104.1,0.00279743]
[1768240157476,0.16113,3105.5,3104.1,0.00279743]
[1768240160782,0.13669114,3105.5,3104.1,0.00279743]
[1768240160983,0.16114,3105.3,3104.1,0.00279743]
[1768240161790,0.13669114,3105.2,3104.1,0.00279743]
[1768240162087,0.13669114,3105.0,3104.1,0.00279743]
[1768240162878,0.16115,3105.1,3104.1,0.00279743]
[1768240164179,4.62969114,3105.5,3104.1,0.00279743]
[1768240165786,4.62969114,3105.5,3104.1,0.13768751]
[1768240165787,4.493,3105.5,3104.1,0.13768751]
[1768240166489,0.29779114,3106.1,3104.2,0.13489008]
[1768240166784,0.16111,3105.8,3104.2,0.13489008]
[1768240167488,0.16111,3105.8,3104.2,2.43702943]
[1768240167689,0.16111,3105.8,3104.3,0.13489008]
[1768240168288,1.27,3106.2,3104.5,0.13489008]
[1768240168488,1.43109,3106.2,3104.5,0.13489008]
[1768240168786,1.43109,3106.2,3104.6,0.13489008]
[1768240169186,0.13669114,3106.1,3104.5,2.30213935]
[1768240170189,0.1611,3106.0,3104.6,0.13489008]
[1768240171192,0.29779114,3106.0,3104.5,2.30213935]
[1768240172189,3.22635775,3106.3,3104.7,0.13489008]
[1768240172490,3.22635775,3106.3,3105.0,0.13489008]
[1768240172692,0.00235775,3106.3,3105.0,0.13489008]
[1768240174293,0.00235775,3106.3,3105.1,0.14148044]
[1768240174686,0.00235775,3106.3,3105.0,0.16115]
[1768240175592,0.00235775,3106.3,3104.6,0.14148044]
[1768240176694,0.1459446,3106.3,3104.6,0.14148044]
[1768240176893,0.30469685,3105.9,3104.2,0.14148044]
[1768240177391,0.16111,3105.9,3104.2,0.14148044]
[1768240179401,0.30469685,3105.9,3104.2,0.14148044]
[1768240179802,0.16111,3105.9,3104.2,0.14148044]
[1768240180895,0.14358685,3108.0,3106.2,0.16109]
[1768240181097,0.16078,3112.2,3105.8,2.25959004]
[1768240181098,0.14358685,3107.8,3105.8,2.25959004]
[1768240181298,0.14358685,3107.8,3105.2,0.16114]
[1768240181603,0.02988009,3106.5,3105.2,0.16114]
[1768240181802,0.03367022,3106.5,3105.2,0.16114]
[1768240182007,0.04417543,3105.9,3105.2,0.16114]
[1768240182200,0.00379013,3106.5,3105.2,0.16114]
[1768240182601,0.14358685,3107.1,3105.2,0.16114]
[1768240183005,0.14358685,3107.1,3104.9,1.27]
[1768240183206,0.14358685,3107.1,3105.5,0.16113]
[1768240183601,0.14674631,3107.1,3105.5,0.16113]
[1768240187008,0.14674631,3107.1,3104.8,0.16379441]
[1768240187213,0.14674631,3107.1,3104.9,0.16116]
[1768240187811,0.03384679,3106.0,3104.9,0.16116]
[1768240188007,0.14358685,3106.6,3104.9,0.16116]
[1768240188206,0.01032864,3105.8,3105.0,0.16115]
[1768240188402,0.14358685,3106.6,3105.0,0.16115]
[1768240188911,0.14358685,3106.6,3105.2,0.16116]
[1768240189513,0.14358685,3106.4,3104.7,0.16119]
[1768240193515,0.14358685,3106.4,3104.1,2.46614678]
[1768240193720,0.14358685,3106.0,3104.1,0.16400743]
[1768240194120,0.03035419,3105.1,3104.1,0.16400743]
[1768240194423,0.14358685,3105.5,3104.1,0.16400743]
[1768240196120,0.14358685,3105.5,3104.1,0.00279743]
[1768240201834,0.14358685,3104.7,3103.0,2.46340935]
[1768240202140,0.14358685,3104.7,3102.5,2.46343935]
[1768240202335,0.14358685,3104.7,3102.4,2.30213935]
[1768240202636,0.14358685,3104.7,3103.2,0.16126]
[1768240202834,0.01028176,3104.0,3103.2,0.00402103]
[1768240203036,0.15386861,3104.0,3103.2,0.00402103]
[1768240203336,0.00312564,3104.7,3103.2,0.00402103]
[1768240203337,0.14358685,3104.5,3103.2,0.00402103]
[1768240203529,0.00312564,3104.7,3103.2,0.16528103]
[1768240205030,0.00312564,3104.7,3103.2,0.00402103]
[1768240205230,0.14086158,3105.8,3104.2,2.25959004]
[1768240205430,0.14086158,3105.8,3104.0,0.16122]
[1768240206231,0.14086158,3105.7,3103.4,0.16125]
[1768240206434,0.14086158,3105.5,3103.5,0.16125]
[1768240207739,0.14086158,3105.4,3103.2,2.30616038]
[1768240207925,0.14086158,3105.4,3103.2,0.00402103]
[1768240208128,0.30201158,3105.4,3103.2,0.00402103]
[1768240208438,0.14086158,3105.3,3103.2,0.00402103]
[1768240209242,0.14086158,3105.3,3103.6,0.16124]
[1768240210338,0.14086158,3105.3,3103.8,0.16123]
[1768240211530,0.14086158,3105.3,3103.3,2.30213935]
[1768240211735,0.14086158,3105.3,3103.3,0.16126]
[1768240212442,0.30695423,3105.1,3103.2,0.00402103]
[1768240212636,0.14578423,3105.0,3103.2,0.00402103]
[1768240213137,0.14578423,3104.7,3103.2,0.00402103]
[1768240213937,0.16118,3104.8,3103.2,0.00402103]
[1768240214138,0.14578423,3105.6,3103.4,2.25959004]
[1768240214345,0.14578423,3105.6,3103.5,4.493]
[1768240214642,0.14578423,3105.6,3103.9,0.16123]
[1768240214840,0.00355406,3105.8,3104.1,2.25959004]
[1768240215041,0.00355406,3105.8,3104.4,0.1612]
[1768240221051,0.14933829,3105.8,3104.4,0.1612]
[1768240221940,0.14933829,3105.8,3104.2,1.99339517]
[1768240223148,0.14933829,3105.8,3103.9,1.27]
[1768240223545,0.14933829,3105.8,3104.2,1.99339517]
[1768240224945,0.14933829,3105.8,3104.2,4.29553452]
[1768240225643,0.14933829,3105.8,3104.2,2.30213935]
[1768240225846,0.14933829,3105.8,3104.1,2.30213935]
[1768240226351,0.14578423,3105.6,3103.8,2.30213935]
[1768240226746,0.14578423,3105.6,3103.9,1.99339517]
[1768240228749,0.14578423,3105.6,3103.8,3.73336935]
[1768240230155,0.14578423,3105.6,3103.9,0.1367242]
[1768240230360,0.14578423,3105.6,3104.1,4.29553452]
[1768240230554,0.14578423,3105.6,3104.1,5.56653452]
[1768240231056,0.00355406,3105.8,3104.2,2.43886355]
[1768240231359,0.00355406,3105.8,3104.3,2.30213935]
[1768240231546,0.00355406,3105.8,3104.4,2.30213935]
[1768240233451,0.00355406,3105.8,3104.5,2.30213935]
[1768240233849,0.14578423,3105.6,3104.3,2.30213935]
[1768240234156,0.14578423,3105.6,3104.4,2.30213935]
[1768240235058,0.14578423,3105.6,3104.3,2.30213935]
[1768240235652,0.13417571,3105.5,3104.3,2.30213935]
[1768240236065,0.13417571,3105.5,3104.2,2.30213935]
[1768240237457,0.29533571,3105.3,3104.0,5.20120369]
[1768240237657,0.13417571,3105.2,3103.9,2.30213935]
[1768240240767,0.13417571,3105.2,3104.0,2.30213935]
[1768240242575,0.13417571,3105.2,3103.8,2.30213935]
[1768240243273,0.13417571,3105.2,3103.9,2.30213935]
[1768240247484,0.13417571,3105.2,3104.0,2.30213935]
[1768240247782,0.00355406,3105.8,3103.9,2.30213935]
[1768240247783,0.13417571,3105.0,3103.9,2.30213935]
[1768240247988,0.13417571,3105.0,3103.8,2.30213935]
[1768240248988,0.16118,3104.9,3103.8,2.30213935]
[1768240249388,0.16119,3104.7,3103.8,2.30213935]
[1768240249688,0.29536571,3104.7,3103.6,2.30213935]
[1768240253193,0.13417571,3104.4,3103.2,2.30616038]
[1768240253387,0.16122,3104.0,3103.2,0.00402103]
[1768240253695,0.16123,3103.9,3103.2,0.00402103]
[1768240254789,0.16123,3103.9,3102.6,2.30213935]
[1768240255595,0.16123,3103.9,3102.5,2.30213935]
[1768240255782,0.16123,3103.9,3102.5,2.30601179]
[1768240257296,0.16123,3103.9,3102.5,0.00387244]
[1768240259094,0.13417571,3103.8,3102.5,0.00387244]
[1768240263099,0.16125,3103.5,3102.5,0.00387244]
[1768240263301,0.16125,3103.4,3102.5,0.00387244]
[1768240263506,0.29542571,3103.4,3102.5,0.00387244]
[1768240265301,0.00236448,3103.5,3102.5,0.00387244]
[1768240266907,0.14259774,3103.4,3102.5,0.00387244]
[1768240267205,0.16361448,3103.5,3102.5,0.00387244]
[1768240267798,0.16125,3103.4,3102.5,0.00387244]
[1768240268004,0.16126,3103.3,3102.5,0.00387244]
[1768240269907,0.30385774,3103.3,3102.5,0.00387244]
[1768240271303,0.30388774,3102.8,3101.4,2.30213935]
[1768240271502,0.30388774,3102.8,3101.3,2.30213935]
[1768240271698,0.14259774,3103.3,3101.4,0.1401255]
[1768240271903,0.30385774,3103.3,3101.5,1.99339517]
[1768240272299,0.30385774,3103.3,3101.5,1.99662917]
[1768240273013,0.1439222,3103.0,3101.5,0.003234]
[1768240273811,0.3052022,3103.0,3101.5,1.99662917]
[1768240274116,0.14628668,3103.5,3101.6,0.13467947]
[1768240274306,0.16125,3103.4,3101.6,2.43681882]
[1768240275206,0.16125,3103.4,3102.0,1.99339517]
[1768240275407,0.00236448,3103.5,3102.0,1.99339517]
[1768240275609,0.00236448,3103.5,3102.0,2.12807464]
[1768240275919,0.00236448,3103.5,3102.0,4.43021399]
[1768240276105,0.00236448,3103.5,3102.1,2.30213935]
[1768240276902,0.00236448,3103.5,3102.0,4.43021399]
[1768240277314,0.00236448,3103.5,3102.1,2.30213935]
[1768240279113,0.00236448,3103.5,3102.2,0.29599947]
[1768240279308,0.00236448,3103.5,3102.3,2.30213935]
[1768240279514,0.00236448,3103.5,3102.4,2.30213935]
[1768240279711,0.00236448,3103.5,3102.4,2.43681882]
[1768240279907,0.1439222,3104.3,3102.5,2.30213935]
[1768240280113,0.16121,3104.2,3102.5,2.30213935]
[1768240280314,0.16121,3104.2,3102.5,2.43681882]
[1768240280916,0.16391019,3104.2,3102.6,2.30213935]
[1768240281310,0.16391019,3104.2,3102.7,2.30213935]
[1768240282519,0.16122,3104.0,3102.7,2.30213935]
[1768240282821,0.00270019,3104.2,3102.5,0.13467947]
[1768240282822,0.1439222,3103.6,3102.5,2.30213935]
[1768240283023,0.1439222,3103.6,3102.3,2.30213935]
[1768240283225,0.3051622,3103.6,3102.2,2.30213935]
[1768240283522,0.16126,3103.4,3102.2,2.30213935]
[1768240283719,0.16126,3103.4,3102.1,2.30213935]
[1768240284022,0.1439222,3103.9,3102.3,2.30213935]
[1768240285213,0.1439222,3103.9,3102.5,2.30213935]
[1768240285414,0.16123,3104.0,3102.7,2.30213935]
[1768240289222,0.00270019,3104.2,3102.7,2.30213935]
[1768240289419,0.00270019,3104.2,3102.8,2.43681882]
[1768240289624,0.00270019,3104.2,3103.1,2.30213935]
[1768240290024,0.00270019,3104.2,3103.2,2.30213935]
[1768240290226,0.00270019,3104.2,3103.1,2.30213935]
[1768240290519,0.00270019,3104.2,3103.2,2.30213935]
[1768240291423,0.00270019,3104.2,3103.1,2.30213935]
[1768240291628,0.00270019,3104.2,3103.0,2.30213935]
[1768240295225,0.00270019,3104.2,3103.0,2.43700592]
[1768240295425,0.00270019,3104.2,3103.1,2.43700592]
[1768240298133,0.00270019,3104.2,3103.2,0.13486657]
[1768240299329,0.16119,3104.7,3103.2,2.43700592]
[1768240300331,0.16526867,3104.7,3103.2,2.43700592]
[1768240300936,0.16526867,3104.7,3103.3,2.30213935]
[1768240301133,0.00407867,3104.7,3103.4,0.13486657]
[1768240301335,1.269,3105.1,3103.6,2.43700592]
[1768240301735,1.269,3105.1,3103.7,2.30213935]
[1768240302233,0.30605073,3104.7,3103.6,2.30213935]
[1768240302440,0.14486073,3104.6,3103.7,0.00361403]
[1768240303145,0.30605073,3104.6,3103.7,0.00361403]
[1768240305545,0.14486073,3105.0,3103.7,0.00361403]
[1768240305741,0.14486073,3105.0,3103.7,2.30575338]
[1768240306945,0.14486073,3105.0,3103.8,2.30213935]
[1768240307946,1.43308738,3105.1,3103.8,2.30213935]
[1768240309335,0.00291738,3105.1,3103.8,2.30213935]
[1768240309935,0.00291738,3105.1,3103.9,2.30213935]
[1768240311240,0.00291738,3105.1,3103.8,2.30213935]
[1768240313245,0.14777811,3105.1,3103.8,2.30213935]
[1768240314649,0.14777811,3105.1,3103.9,2.30213935]
[1768240316342,0.00291738,3105.1,3103.9,2.30213935]
[1768240321252,0.14777811,3105.1,3103.9,2.30213935]
[1768240322165,0.14777811,3105.1,3104.0,2.30213935]
[1768240322452,0.14486073,3105.0,3103.9,2.30213935]
[1768240322652,0.14486073,3104.7,3103.7,2.30575338]
[1768240322847,0.14486073,3104.6,3103.7,0.00361403]
[1768240323250,0.14486073,3104.6,3103.6,2.30213935]
[1768240323251,0.14486073,3104.1,3103.4,2.30213935]
[1768240323456,0.14486073,3104.1,3102.9,2.30213935]
[1768240323756,0.16122,3104.2,3103.0,2.30213935]
[1768240324362,0.16122,3104.2,3103.0,2.3046635]
[1768240324655,0.14486073,3104.6,3103.3,2.30213935]
[1768240325855,0.14486073,3104.6,3103.4,2.30213935]
[1768240328660,0.16118,3104.8,3103.4,2.30213935]
[1768240328851,0.14846623,3105.1,3103.6,2.30213935]
[1768240330459,0.14846623,3105.1,3103.7,2.30213935]
[1768240331156,0.30963623,3105.1,3103.7,2.30213935]
[1768240331459,0.14554885,3105.0,3103.7,2.30213935]
[1768240334466,0.16408738,3105.1,3103.9,2.30213935]
[1768240335262,0.16408738,3105.1,3104.0,2.30213935]
[1768240336959,3.225,3105.4,3104.1,2.30213935]
[1768240337167,3.225,3105.4,3104.2,2.30213935]
[1768240337874,1.269,3105.5,3104.3,2.30213935]
[1768240338071,1.27221951,3105.5,3104.3,2.30213935]
[1768240338475,0.00321951,3105.5,3104.5,2.30213935]
[1768240338968,0.00321951,3105.5,3104.6,2.30213935]
[1768240339160,0.00321951,3105.5,3104.3,2.89906434]
[1768240339161,0.00321951,3105.5,3104.5,2.30213935]
[1768240339975,0.13784527,3105.5,3104.5,2.30213935]
[1768240340168,0.13784527,3105.5,3104.3,2.30213935]
[1768240340169,0.13462576,3105.4,3104.3,2.30213935]
[1768240340370,0.13462576,3105.4,3104.2,2.30213935]
[1768240343975,0.16117,3105.0,3104.0,2.30213935]
[1768240344175,0.16117,3105.0,3103.8,2.30213935]
[1768240344479,0.13462576,3105.4,3103.9,2.30213935]
[1768240344679,0.13462576,3105.4,3104.0,2.30213935]
[1768240345075,0.13462576,3105.4,3104.1,2.30213935]
[1768240345881,0.13462576,3105.4,3104.2,2.30213935]
[1768240346281,0.00321951,3105.5,3104.2,2.30213935]
[1768240346879,0.00321951,3105.5,3104.3,2.30213935]
[1768240350784,0.13784527,3105.5,3104.2,2.30213935]
[1768240353688,0.00321951,3105.5,3104.3,4.29578591]
[1768240355994,0.00321951,3105.5,3104.4,2.30213935]
[1768240358198,0.00321951,3105.5,3104.5,2.30213935]
[1768240360413,1.271,3106.1,3104.5,2.42897598]
[1768240360710,1.271,3106.1,3104.9,1.99364656]
[1768240361513,1.2749092,3106.1,3104.9,1.99364656]
[1768240361910,0.1611,3106.3,3104.9,4.29578591]
[1768240362110,0.14136268,3106.9,3105.4,1.99364656]
[1768240362313,0.16108,3106.8,3105.4,1.99364656]
[1768240362509,0.30244268,3106.8,3105.4,1.99364656]
[1768240363216,0.30478439,3106.8,3105.4,1.99648376]
[1768240363607,0.30478439,3106.8,3105.4,4.29862311]
[1768240364418,0.30478439,3106.8,3105.5,2.30213935]
[1768240365117,0.30478439,3106.8,3105.4,4.29862311]
[1768240365417,0.14136268,3106.7,3105.4,2.30497655]
[1768240365910,0.30245268,3106.6,3105.4,0.0028372]
[1768240366117,0.16109,3106.6,3105.4,0.0028372]
[1768240367814,0.30245268,3106.6,3105.4,0.0028372]
[1768240368021,0.14136268,3106.5,3105.4,0.0028372]
[1768240368425,0.16109,3106.6,3105.4,0.0028372]
[1768240369915,0.14136268,3106.2,3105.4,0.0028372]
[1768240371622,0.14136268,3106.0,3104.7,2.30213935]
[1768240372015,0.14136268,3105.9,3104.7,2.30213935]
[1768240372222,0.14136268,3105.9,3104.6,2.30213935]
[1768240372722,0.14136268,3105.9,3104.6,2.30597841]
[1768240375222,0.14136268,3105.9,3104.7,2.30213935]
[1768240376161,0.16112,3106.0,3104.7,2.30213935]
[1768240377020,0.14136268,3105.9,3104.7,2.30213935]
[1768240377425,0.14136268,3105.9,3105.1,1.24595359]
[1768240381030,0.14136268,3105.8,3105.1,1.24595359]
[1768240381734,0.14136268,3105.8,3105.3,1.24595359]
[1768240383434,0.14136268,3105.8,3104.6,2.30597841]
[1768240383731,0.14136268,3105.8,3105.2,1.24595359]
[1768240384128,0.14136268,3105.8,3105.0,1.24595359]
[1768240384329,0.13707007,3105.5,3104.6,0.00383906]
[1768240384538,0.13707007,3105.0,3104.0,3.54809294]
[1768240384732,0.13707007,3105.0,3104.2,1.24595359]
[1768240384929,0.13707007,3105.0,3104.4,1.24595359]
[1768240385431,0.13707007,3105.0,3103.9,2.30213935]
[1768240385628,0.13707007,3105.0,3103.9,2.3054829]
[1768240387038,0.13707007,3105.0,3103.9,0.00334355]
[1768240390135,0.16118,3104.8,3103.9,0.00334355]
[1768240394046,0.13707007,3105.0,3103.9,0.00334355]
[1768240394237,0.13360745,3104.6,3103.9,0.00334355]
[1768240394434,0.29480745,3104.5,3103.1,2.30213935]
[1768240395037,0.13360745,3104.4,3103.1,2.30213935]
[1768240395231,0.13360745,3104.3,3103.0,2.30213935]
[1768240395532,0.13360745,3104.3,3103.0,0.00279127]
[1768240396548,0.29481745,3104.3,3103.0,0.00279127]
[1768240396748,0.13360745,3104.2,3103.0,0.00279127]
[1768240401453,0.29481745,3104.2,3103.0,0.00279127]
[1768240401752,0.13360745,3104.1,3103.0,0.00279127]
[1768240405446,0.13360745,3104.1,3103.0,1.25014063]
[1768240405842,0.13360745,3104.1,3103.0,0.00279127]
[1768240409748,0.29484745,3103.8,3103.0,0.00279127]
[1768240410148,0.13360745,3104.2,3103.0,0.00279127]
[1768240410352,0.1612,3104.4,3103.2,1.24734936]
[1768240410552,10.385,3105.5,3103.6,1.24734936]
[1768240410755,0.16117,3105.1,3104.0,1.24734936]
[1768240411650,0.16358603,3105.1,3104.0,1.24734936]
[1768240413052,0.01604674,3104.6,3104.0,1.24734936]
[1768240413353,0.16358603,3105.1,3104.0,1.24734936]
[1768240414852,0.16118,3104.8,3103.6,2.30213935]
[1768240415155,0.14659649,3104.6,3103.1,5.20120369]
[1768240415450,0.14659649,3104.6,3103.2,1.24734936]
[1768240416647,0.1612,3104.5,3103.2,1.24734936]
[1768240418453,0.14659649,3104.4,3103.1,2.30213935]
[1768240418657,0.16122,3104.1,3103.0,0.00279127]
[1768240418858,0.16123,3104.0,3103.0,0.00279127]
[1768240419049,0.30782649,3104.0,3103.0,0.00279127]
[1768240419249,0.16123,3103.8,3103.0,0.00279127]
[1768240419558,1.271,3104.3,3102.3,2.30213935]
[1768240419559,0.30783649,3103.7,3102.3,2.30213935]
[1768240420756,0.30783649,3103.7,3102.3,2.30499291]
[1768240422260,0.30783649,3103.7,3102.3,0.00285356]
[1768240422452,0.30783649,3103.7,3102.3,2.30499291]
[1768240422652,0.30783649,3103.7,3102.3,0.00285356]
[1768240422959,0.30783649,3103.7,3102.3,2.30499291]
[1768240423159,0.30783649,3103.7,3102.3,0.00285356]
[1768240426361,0.14659649,3103.6,3102.3,0.00285356]
[1768240434867,0.14659649,3103.6,3102.4,1.24734936]
[1768240436070,0.14659649,3103.6,3102.3,0.00285356]
[1768240436071,0.16125,3103.5,3102.3,0.00285356]
[1768240436369,0.16125,3103.5,3102.3,1.25020292]
[1768240437058,0.14659649,3104.0,3102.7,1.24734936]
[1768240437256,0.30781649,3104.0,3102.7,1.24734936]
[1768240437468,0.16123,3103.9,3102.3,3.68587289]
[1768240437670,0.30782649,3103.9,3102.3,1.38373354]
[1768240438165,0.30782649,3103.9,3102.3,3.68587289]
[1768240438668,0.01025617,3103.1,3102.3,3.68587289]
[1768240438870,0.16123,3103.8,3102.3,1.38373354]
[1768240439267,0.16123,3103.8,3102.3,3.68587289]
[1768240440081,4.496,3104.4,3102.3,0.00285356]
[1768240440082,0.30783649,3103.6,3102.3,0.00285356]
[1768240440371,0.30784649,3103.5,3102.3,0.00285356]
[1768240446187,0.30784649,3103.5,3102.3,2.30499291]
[1768240446779,0.16122,3104.0,3103.0,1.24734936]
[1768240447185,0.14283249,3104.3,3103.0,1.24734936]
[1768240447387,1.271,3104.7,3103.9,1.24734936]
[1768240447583,0.00241603,3105.1,3103.9,1.24734936]
[1768240447791,0.00241603,3105.1,3103.6,1.39095309]
[1768240448786,0.16117,3105.0,3103.7,0.14360373]
[1768240449087,0.16117,3105.0,3104.0,1.24734936]
[1768240451284,0.16117,3105.0,3103.7,0.14360373]
[1768240452494,0.16117,3105.0,3104.0,1.24734936]
[1768240452794,0.16117,3105.0,3104.1,1.24734936]
[1768240453689,0.00241603,3105.1,3104.1,1.24734936]
[1768240453887,0.00241603,3105.1,3103.7,0.14360373]
[1768240454090,0.00241603,3105.1,3103.9,1.38120961]
[1768240454395,0.00241603,3105.1,3104.0,0.13386025]
[1768240454694,10.385,3106.0,3104.7,1.24734936]
[1768240454894,0.16112,3106.1,3104.7,1.24734936]
[1768240455791,0.16337617,3106.1,3104.7,1.25136063]
[1768240456188,0.00225617,3106.1,3104.7,1.25136063]
[1768240456488,13.61,3107.0,3105.4,0.13386025]
[1768240456686,3.38607,3107.0,3105.4,0.13386025]
[1768240456892,3.52061362,3107.0,3105.4,0.13386025]
[1768240457593,3.52354345,3107.0,3105.4,0.13386025]
[1768240457890,0.29563362,3106.7,3104.9,0.13386025]
[1768240458984,0.16109,3106.7,3104.9,0.13386025]
[1768240461390,0.29563362,3106.7,3104.9,0.13386025]
[1768240461695,0.13454362,3106.6,3104.9,0.13386025]
[1768240461991,0.29563362,3106.6,3104.9,0.13386025]
[1768240462992,0.16109,3106.5,3104.9,0.13386025]
[1768240463194,0.29564362,3106.4,3104.7,0.00401127]
[1768240463493,0.29564362,3106.4,3104.7,0.13787152]
[1768240463892,0.1611,3106.4,3104.7,0.13787152]
[1768240464994,0.1611,3106.4,3105.0,0.13386025]
[1768240465395,1.271,3106.8,3105.4,2.12692739]
[1768240465588,3.223,3106.9,3105.5,0.13386025]
[1768240466491,0.16103,3107.7,3106.0,0.13386025]
[1768240466700,0.16103,3107.7,3106.5,0.13386025]
[1768240467599,0.16357674,3107.7,3106.0,0.13386025]
[1768240468903,0.16105,3107.4,3106.0,0.13386025]
[1768240469998,0.16105,3107.4,3105.6,1.99306714]
[1768240470199,0.16105,3107.4,3105.7,0.13386025]
[1768240470600,0.16105,3107.4,3106.2,0.13386025]
[1768240472703,0.00254674,3107.7,3106.2,0.13386025]
[1768240474607,0.00254674,3107.7,3106.7,0.13468394]
[1768240476704,0.16102,3108.0,3106.7,0.13468394]
[1768240477805,0.16476267,3108.0,3106.7,0.13468394]
[1768240479208,0.00374267,3108.0,3106.7,0.13468394]
[1768240482002,0.00374267,3108.0,3106.4,0.1611]
[1768240483408,0.00374267,3108.0,3106.4,0.29578394]
[1768240485611,0.00374267,3108.0,3106.5,0.13468394]
[1768240486110,0.00374267,3108.0,3106.6,1.99306714]
[1768240486312,0.00374267,3108.0,3106.7,0.13468394]
[1768240487013,0.16098,3108.7,3107.2,2.12775108]
[1768240488111,0.16382858,3108.7,3107.2,2.13135088]
[1768240489210,0.16382858,3108.7,3107.3,0.13468394]
[1768240490711,0.16382858,3108.7,3107.2,0.0035998]
[1768240491107,0.16382858,3108.7,3107.2,0.13828374]
[1768240492909,0.16382858,3108.7,3107.3,1.99306714]
[1768240493215,0.16382858,3108.7,3107.3,2.12775108]
[1768240493914,0.16382858,3108.7,3107.3,0.13468394]
[1768240494308,0.16099,3108.6,3107.2,0.0035998]
[1768240498015,0.16099,3108.5,3107.2,0.0035998]
[1768240498913,0.16099,3108.4,3107.2,0.0035998]
[1768240499913,0.13955708,3108.7,3107.2,0.0035998]
[1768240500118,0.161,3108.2,3107.2,0.0035998]
[1768240501018,0.13955708,3108.7,3107.2,0.0035998]
[1768240501320,0.16382858,3108.7,3107.2,0.13828374]
[1768240501516,0.16382858,3108.7,3107.6,0.13468394]
[1768240501922,0.16382858,3108.7,3107.2,2.44042309]
[1768240502425,0.16382858,3108.7,3107.3,0.13468394]
[1768240502609,0.16382858,3108.7,3107.4,0.13468394]
[1768240503817,0.16382858,3108.7,3107.3,4.29520649]
[1768240504119,0.30053708,3108.7,3107.3,2.30213935]
[1768240504322,0.16382858,3108.7,3107.3,2.30213935]
[1768240504523,0.16382858,3108.7,3107.3,2.43783512]
[1768240505319,0.14358361,3108.7,3107.3,2.30213935]
[1768240505515,0.14358361,3108.7,3107.2,2.30573915]
[1768240505715,0.14358361,3108.7,3107.3,2.30213935]
[1768240505915,0.14358361,3108.7,3107.2,2.30573915]
[1768240506212,0.14358361,3108.7,3107.3,2.30213935]
[1768240506717,0.16099,3108.5,3107.3,2.30213935]
[1768240507526,0.16099,3108.5,3107.2,0.0035998]